{"text_format":"3","workbook":"xlsx","n_sheets":2,"sheets":["Tarjouslomake","Kustannuserittely"],"not_rendered":{"charts":1,"images":2,"defined_names":4},"read":"whole","date_system":"1900"}

{"sheet":"Tarjouslomake","index":0,"n_rows":48,"n_cols":7,"rows_kept":48,"merged":[[15,1,25,5],[29,1,31,5],[35,1,37,5],[43,1,45,5]]}
[]
[null,"RAKENNUSTARJOUSLOMAKE",{"$nulls":4}," "]
[]
[]
[null,"OMISTAJAN TIEDOT",null,null,"ALIHANKKIJAN TIEDOT"]
[null,"Nimi:","Teemu Sallinen",null,"Yritys","Fabrikam, Inc."]
[null,"Osoite","Keskikatu 123",null,"Nimi:","Juha-Pekka Posti"]
[null,"Postinumero, kaupunki","12345 Espoo",null,"Osoite","Eteläkatu 321"]
[null,"Puhelin",8885550111,null,"Postinumero, kaupunki","12345 Espoo"]
[null,"Sähköposti","teemu@proseware.com",null,"Puhelin",8885550123]
[{"$nulls":4},"Sähköposti","jposti@fabrikam.com  "]
[null,"Projektin nimi","Yrityksen porraskäytävä",null,"Valmistumispäivä","2013-07-14"]
[]
[null,"TYÖN LAAJUUS"]
[]
[null,"Työprojektin laajuus tulee tähän. Kirjoita tähän kaikki haluamasi määritykset. Tämä on suurten portaiden rakentamisen harjoitusprojekti. Käytämme kehyksen rakentamiseen vain 2x4- ja 2x8-kokoisia lautoja ja palkkien kannattimia. Portaat leikataan 2x4-kokoisesta materiaalista. Käytettävät ruuvit ovat 2 tuuman ja naulat 3 tuuman pituisia. Kukin porras kestää 500 paunan painon. Portaat ovat talon tasolla. Astinlauta kiinnitetään taloon. Urakoitsija vastaa siivouksesta."]
{"$rows_empty":11}
[null,"EI SISÄLLY"]
[]
[null,"Kaiteita ei asenneta. Omistajan on valmisteltava lattia. Omistajan on maalattava portaat."]
[]
[]
[]
[null,"YRITYKSEN EHDOTUS"]
[]
[null,"Me, Fabrikam, Inc., ehdotamme 14.7.2011 valmistuvaa 476,43 € hintaista työtä yllä mainitussa laajuudessaan."]
[]
[]
[]
[null,"Allekirjoittaja (yrityksen edustaja)",{"$nulls":3},"Päivämäärä"]
[]
[null,"OMISTAJAN HYVÄKSYNTÄ"]
[]
[null,"Minä, Teemu Sallinen, hyväksyn 14.7.2011 valmistuvan 476,43 € hintaisen työn yllä mainitussa laajuudessaan."]
[]
[]
[]
[null,"Allekirjoittaja (kodin omistaja tai valtuutettu edustaja)",{"$nulls":3},"Päivämäärä"]

{"sheet":"Kustannuserittely","index":1,"n_rows":47,"n_cols":6,"rows_kept":47,"merged":[[42,3,42,4],[43,3,43,4],[44,3,44,4],[45,3,45,4],[46,3,46,4],[47,3,47,4],[48,3,48,4],[49,3,49,4]]}
[]
[null,"YHTEENVETO TARJOUSKUSTANNUKSISTA",{"$nulls":3}," "]
[]
[]
[null,"MATERIAALIEN JA KUSTANNUSTEN LUETTELO"]
[]
[null,"Määrä","Kuvaus","Kustannus","Yhteensä"," "]
[null,5,"Lauta 2x8x10",{"v":6.75,"d":"6.75 €"},{"$f":"Tarjouskohteet[Kustannus]*Tarjouskohteet[Määrä]","v":{"v":33.75,"d":"33.75 €"}},{"$f":"_xlfn.RANK.EQ(Tarjouskohteet[[#This Row],[Yhteensä]],Tarjouskohteet[Yhteensä])","v":4}]
[null,20,"Lauta 2x4x10",{"v":4.97,"d":"4.97 €"},{"$f":"Tarjouskohteet[Kustannus]*Tarjouskohteet[Määrä]","v":{"v":99.39999999999999,"d":"99.40 €"}},{"$f":"_xlfn.RANK.EQ(Tarjouskohteet[[#This Row],[Yhteensä]],Tarjouskohteet[Yhteensä])","v":2}]
[null,30,"Palkkien kannatin",{"v":2.49,"d":"2.49 €"},{"$f":"Tarjouskohteet[Kustannus]*Tarjouskohteet[Määrä]","v":{"v":74.7,"d":"74.70 €"}},{"$f":"_xlfn.RANK.EQ(Tarjouskohteet[[#This Row],[Yhteensä]],Tarjouskohteet[Yhteensä])","v":3}]
[null,2,"Ruuvilaatikko (2 tuumaa)",{"v":6.67,"d":"6.67 €"},{"$f":"Tarjouskohteet[Kustannus]*Tarjouskohteet[Määrä]","v":{"v":13.34,"d":"13.34 €"}},{"$f":"_xlfn.RANK.EQ(Tarjouskohteet[[#This Row],[Yhteensä]],Tarjouskohteet[Yhteensä])","v":6}]
[null,2,"Naulalaatikko (3 tuumaa)",{"v":3.25,"d":"3.25 €"},{"$f":"Tarjouskohteet[Kustannus]*Tarjouskohteet[Määrä]","v":{"v":6.5,"d":"6.50 €"}},{"$f":"_xlfn.RANK.EQ(Tarjouskohteet[[#This Row],[Yhteensä]],Tarjouskohteet[Yhteensä])","v":7}]
[null,2,"Nahkahanskat",{"v":7.75,"d":"7.75 €"},{"$f":"Tarjouskohteet[Kustannus]*Tarjouskohteet[Määrä]","v":{"v":15.5,"d":"15.50 €"}},{"$f":"_xlfn.RANK.EQ(Tarjouskohteet[[#This Row],[Yhteensä]],Tarjouskohteet[Yhteensä])","v":5}]
[null,2,"Työkustannukset",{"v":100,"d":"100.00 €"},{"$f":"Tarjouskohteet[Kustannus]*Tarjouskohteet[Määrä]","v":{"v":200,"d":"200.00 €"}},{"$f":"_xlfn.RANK.EQ(Tarjouskohteet[[#This Row],[Yhteensä]],Tarjouskohteet[Yhteensä])","v":1}]
[{"$nulls":5},{"$f":"_xlfn.RANK.EQ(Tarjouskohteet[[#This Row],[Yhteensä]],Tarjouskohteet[Yhteensä])","v":{"$error":"#N/A"}}]
[{"$nulls":5},{"$f":"_xlfn.RANK.EQ(Tarjouskohteet[[#This Row],[Yhteensä]],Tarjouskohteet[Yhteensä])","v":{"$error":"#N/A"}}]
[{"$nulls":5},{"$f":"_xlfn.RANK.EQ(Tarjouskohteet[[#This Row],[Yhteensä]],Tarjouskohteet[Yhteensä])","v":{"$error":"#N/A"}}]
[{"$nulls":5},{"$f":"_xlfn.RANK.EQ(Tarjouskohteet[[#This Row],[Yhteensä]],Tarjouskohteet[Yhteensä])","v":{"$error":"#N/A"}}]
[{"$nulls":5},{"$f":"_xlfn.RANK.EQ(Tarjouskohteet[[#This Row],[Yhteensä]],Tarjouskohteet[Yhteensä])","v":{"$error":"#N/A"}}]
[{"$nulls":5},{"$f":"_xlfn.RANK.EQ(Tarjouskohteet[[#This Row],[Yhteensä]],Tarjouskohteet[Yhteensä])","v":{"$error":"#N/A"}}]
[{"$nulls":5},{"$f":"_xlfn.RANK.EQ(Tarjouskohteet[[#This Row],[Yhteensä]],Tarjouskohteet[Yhteensä])","v":{"$error":"#N/A"}}]
[{"$nulls":5},{"$f":"_xlfn.RANK.EQ(Tarjouskohteet[[#This Row],[Yhteensä]],Tarjouskohteet[Yhteensä])","v":{"$error":"#N/A"}}]
[{"$nulls":5},{"$f":"_xlfn.RANK.EQ(Tarjouskohteet[[#This Row],[Yhteensä]],Tarjouskohteet[Yhteensä])","v":{"$error":"#N/A"}}]
[{"$nulls":5},{"$f":"_xlfn.RANK.EQ(Tarjouskohteet[[#This Row],[Yhteensä]],Tarjouskohteet[Yhteensä])","v":{"$error":"#N/A"}}]
[{"$nulls":5},{"$f":"_xlfn.RANK.EQ(Tarjouskohteet[[#This Row],[Yhteensä]],Tarjouskohteet[Yhteensä])","v":{"$error":"#N/A"}}]
[{"$nulls":5},{"$f":"_xlfn.RANK.EQ(Tarjouskohteet[[#This Row],[Yhteensä]],Tarjouskohteet[Yhteensä])","v":{"$error":"#N/A"}}]
[{"$nulls":5},{"$f":"_xlfn.RANK.EQ(Tarjouskohteet[[#This Row],[Yhteensä]],Tarjouskohteet[Yhteensä])","v":{"$error":"#N/A"}}]
[{"$nulls":5},{"$f":"_xlfn.RANK.EQ(Tarjouskohteet[[#This Row],[Yhteensä]],Tarjouskohteet[Yhteensä])","v":{"$error":"#N/A"}}]
[{"$nulls":5},{"$f":"_xlfn.RANK.EQ(Tarjouskohteet[[#This Row],[Yhteensä]],Tarjouskohteet[Yhteensä])","v":{"$error":"#N/A"}}]
[{"$nulls":5},{"$f":"_xlfn.RANK.EQ(Tarjouskohteet[[#This Row],[Yhteensä]],Tarjouskohteet[Yhteensä])","v":{"$error":"#N/A"}}]
[1,{"$nulls":4},{"$f":"_xlfn.RANK.EQ(Tarjouskohteet[[#This Row],[Yhteensä]],Tarjouskohteet[Yhteensä])","v":{"$error":"#N/A"}}]
[2,null,null,"Välisumma",{"$f":"SUBTOTAL(109,Tarjouskohteet[Yhteensä])","v":{"v":443.18999999999994,"d":"443.19 €"}}]
[3,null,null,"Veroprosentti",{"v":0.075,"d":"7.5 %"}]
[4,null,null,"Vero",{"$f":"TaxRate*Tarjouskohteet[[#Totals],[Yhteensä]]","v":{"v":33.23924999999999,"d":"33.24 €"}}]
[5,null,null,"Kokonaissumma",{"$f":"Tax+Tarjouskohteet[[#Totals],[Yhteensä]]","v":{"v":476.4292499999999,"d":"476.43 €"}}]
[]
[]
[]
[null,"MATERIAALIEN JA KUSTANNUSTEN ERITTELY"]
[]
[]
[null,null,"TOTAL","HUOMAUTUKSET"]
[null,{"$f":"INDEX(Tarjouskohteet[],MATCH(A31,Tarjouskohteet[[ ]],0),2)","v":"Työkustannukset"},{"$f":"INDEX(Tarjouskohteet[],MATCH(A31,Tarjouskohteet[[ ]],0),4)","v":{"v":200,"d":"$200.00"}}]
[null,{"$f":"INDEX(Tarjouskohteet[],MATCH(A32,Tarjouskohteet[[ ]],0),2)","v":"Lauta 2x4x10"},{"$f":"INDEX(Tarjouskohteet[],MATCH(A32,Tarjouskohteet[[ ]],0),4)","v":{"v":99.39999999999999,"d":"$99.40"}}]
[null,{"$f":"INDEX(Tarjouskohteet[],MATCH(A33,Tarjouskohteet[[ ]],0),2)","v":"Palkkien kannatin"},{"$f":"INDEX(Tarjouskohteet[],MATCH(A33,Tarjouskohteet[[ ]],0),4)","v":{"v":74.7,"d":"$74.70"}}]
[null,{"$f":"INDEX(Tarjouskohteet[],MATCH(A34,Tarjouskohteet[[ ]],0),2)","v":"Lauta 2x8x10"},{"$f":"INDEX(Tarjouskohteet[],MATCH(A34,Tarjouskohteet[[ ]],0),4)","v":{"v":33.75,"d":"$33.75"}}]
[null,{"$f":"INDEX(Tarjouskohteet[],MATCH(A35,Tarjouskohteet[[ ]],0),2)","v":"Nahkahanskat"},{"$f":"INDEX(Tarjouskohteet[],MATCH(A35,Tarjouskohteet[[ ]],0),4)","v":{"v":15.5,"d":"$15.50"}}]